[Event "SVK Extraliga 2019-20"]
[Site "Slovakia"]
[Date "2020.09.04"]
[Round "9"]
[White "Mrvova, Alena"]
[Black "Varga, Lukas"]
[Result "0-1"]
[ECO "B90"]
[WhiteElo "2168"]
[BlackElo "2065"]
[Annotator "ChessBase"]
[PlyCount "94"]
[EventDate "2019.10.19"]
[EventType "team-tourn"]
[EventCountry "SVK"]
[SourceTitle "playchess.com"]
[Source "ChessBase"]
[SourceQuality "1"]
[WhiteTeam "Snina"]
[BlackTeam "Kosice"]
[TimeControl "40/5400+30:1800+30"]

1. e4 {[%emt 0:00:00]} c5 {[%emt 0:00:00]} 2. Nf3 {[%emt 0:00:22]} d6 {[%emt 0:00:00]} 3. d4 {[%emt 0:01:44]} cxd4 {[%emt 0:01:04]} 4. Nxd4 {[%emt 0:00:06]} Nf6 {[%emt 0:02:09]} 5. Nc3 {[%emt 0:00:15]} a6 {[%emt 0:00:04]} 6. Be3 {[%emt 0:00:45]} e5 {[%emt 0:00:13]} 7. Nb3 {[%emt 0:01:40]} Be6 {[%emt 0:01:15]} 8. Qd2 {[%emt 0:08:01]} Be7 {[%emt 0:04:33]} 9. Be2 {[%emt 0:00:26]} Nbd7 {[%emt 0:09:45]} 10. f3 {[%emt 0:03:01]} O-O {[%emt 0:02:33]} 11. O-O {[%emt 0:02:20]} Nb6 {[%emt 0:03:42]} 12. Kh1 {[%emt 0:05:49]} Rc8 {[%emt 0:08:31]} 13. Rfd1 {[%emt 0:01:27]} Qc7 {[%emt 0:04:19]} 14. Qe1 {[%emt 0:01:36]} Nc4 {[%emt 0:06:33]} 15. Bxc4 {[%emt 0:01:12]} Bxc4 {[%emt 0:02:30]} 16. Rac1 {[%emt 0:02:04]} d5 {[%emt 0:04:14]} 17. Nxd5 {[%emt 0:04:08]} Nxd5 {[%emt 0:02:09]} 18. exd5 {[%emt 0:00:28]} Rfd8 {[%emt 0:00:27]} 19. Nd2 {[%emt 0:03:18]} Bxd5 {[%emt 0:01:29]} 20. c4 {[%emt 0:00:59]} Be6 {[%emt 0:02:51]} 21. Qg3 {[%emt 0:03:15]} f5 {[%emt 0:02:49]} 22. Qf2 {[%emt 0:01:23]} Rd3 {[%emt 0:01:04]} 23. b3 {[%emt 0:07:15]} Qd6 {[%emt 0:04:30]} 24. f4 {[%emt 0:05:07]} e4 {[%emt 0:06:59]} 25. Re1 {[%emt 0:01:06]} Qb4 {[%emt 0:02:04]} 26. Nf1 {[%emt 0:03:57]} Rcd8 {[%emt 0:06:52]} 27. Rc2 {[%emt 0:04:28]} Qd6 {[%emt 0:01:49]} 28. Bc1 {[%emt 0:07:00]} Rd1 {[%emt 0:01:22]} 29. Rce2 {[%emt 0:01:17]} Rxe1 {[%emt 0:00:32]} 30. Rxe1 {[%emt 0:00:51]} Bf6 {[%emt 0:00:58]} 31. Ne3 {[%emt 0:01:08]} Qc5 {[%emt 0:01:41]} 32. Qe2 {[%emt 0:02:43]} b5 {[%emt 0:01:01]} 33. Rd1 {[%emt 0:04:23]} Rxd1+ {[%emt 0:00:17]} 34. Qxd1 {[%emt 0:00:16]} bxc4 {[%emt 0:01:30]} 35. bxc4 {[%emt 0:01:01]} Bd4 {[%emt 0:03:51]} 36. Qb3 {[%emt 0:05:06]} Qa5 {[%emt 0:02:16]} 37. Nc2 {[%emt 0:04:08]} h6 {[%emt 0:03:23]} 38. h3 {[%emt 0:00:44]} Qc3 {[%emt 0:02:47]} 39. Be3 {[%emt 0:05:29]} Bf6 {[%emt 0:02:08]} 40. Na3 {[%emt 0:04:28]} Qe1+ {[%emt 0:01:44]} 41. Kh2 {[%emt 0:30:36]} Bh4 {[%emt 0:31:47]} 42. Bd4 {[%emt 0:01:34]} Kh7 {[%emt 0:00:00]} 43. Nc2 {[%emt 0:00:00]} Qf1 {[%emt 0:00:00]} 44. Qb7 {[%emt 0:00:00]} Qxf4+ {[%emt 0:00:00]} 45. Kg1 {[%emt 0:00:00]} Qc1+ {[%emt 0:00:00]} 46. Kh2 {[%emt 0:00:00]} Qg5 {[%emt 0:00:00]} 47. Qxa6 {[%emt 0:00:00]} Bg3+ 0-1

[Event "SVK Extraliga 2019-20"]
[Site "Slovakia"]
[Date "2020.09.04"]
[Round "9"]
[White "Sepesi, Samuel"]
[Black "Klemanic, Emil"]
[Result "1/2-1/2"]
[ECO "C41"]
[WhiteElo "2147"]
[BlackElo "2080"]
[Annotator "ChessBase"]
[PlyCount "42"]
[EventDate "2019.10.19"]
[EventType "team-tourn"]
[EventCountry "SVK"]
[SourceTitle "playchess.com"]
[Source "ChessBase"]
[SourceQuality "1"]
[WhiteTeam "Snina"]
[BlackTeam "Kosice"]
[TimeControl "40/5400+30:1800+30"]

1. e4 {[%emt 0:00:00]} d6 {[%emt 0:00:00]} 2. d4 {[%emt 0:00:00]} Nf6 {[%emt 0:00:00]} 3. Nc3 {[%emt 0:00:00]} e5 {[%emt 0:00:00]} 4. Nf3 {[%emt 0:00:13]} Nbd7 {[%emt 0:00:00]} 5. Bc4 {[%emt 0:02:12]} Be7 {[%emt 0:00:00]} 6. O-O {[%emt 0:02:02]} O-O {[%emt 0:00:10]} 7. a4 {[%emt 0:07:17]} c6 8. a5 {[%emt 0:01:44]} Qc7 {[%emt 0:00:31]} 9. Qe2 {[%emt 0:05:43]} Rb8 {[%emt 0:04:29]} 10. Rd1 {[%emt 0:12:13]} b5 {[%emt 0:06:27]} 11. axb6 {[%emt 0:00:18]} axb6 {[%emt 0:00:31]} 12. d5 {[%emt 0:07:39]} b5 {[%emt 0:04:39]} 13. Ba2 {[%emt 0:07:30]} b4 {[%emt 0:02:09]} 14. dxc6 {[%emt 0:00:27]} bxc3 {[%emt 0:00:26]} 15. cxd7 {[%emt 0:00:12]} Bxd7 {[%emt 0:04:41]} 16. bxc3 {[%emt 0:00:20]} Qxc3 {[%emt 0:00:16]} 17. Bg5 {[%emt 0:01:57]} h6 {[%emt 0:06:50]} 18. Bxf6 {[%emt 0:08:24]} Bxf6 {[%emt 0:01:10]} 19. Qd2 {[%emt 0:00:29]} Qxd2 {[%emt 0:05:39]} 20. Rxd2 {[%emt 0:03:17]} Ra8 {[%emt 0:01:26]} 21. Rdd1 {[%emt 0:00:12]} Bc8 {[%emt 0:01:15]} 1/2-1/2

[Event "SVK Extraliga 2019-20"]
[Site "Slovakia"]
[Date "2020.09.04"]
[Round "9"]
[White "Tropp, Oliver"]
[Black "Zambor, Norbert"]
[Result "0-1"]
[ECO "A04"]
[WhiteElo "2075"]
[BlackElo "2262"]
[Annotator "RC"]
[PlyCount "60"]
[EventDate "2019.10.19"]
[EventType "team-tourn"]
[EventCountry "SVK"]
[SourceTitle "playchess.com"]
[Source "ChessBase"]
[SourceQuality "1"]
[WhiteTeam "Liptovska"]
[BlackTeam "Prakovce"]
[TimeControl "40/5400+30:1800+30"]

1. Nf3 {[%emt 0:00:00]} c5 {[%emt 0:00:21]} 2. g3 {[%emt 0:00:00]} Nc6 {[%emt 0:00:44]} 3. Bg2 {[%emt 0:00:31]} e5 {[%emt 0:00:57]} 4. d3 {[%emt 0:00:51]} g6 {[%emt 0:00:21]} 5. h4 {[%emt 0:00:49]} h5 {[%emt 0:03:38]} 6. c4 {[%emt 0:00:50]} Bg7 {[%emt 0:00:10]} 7. Nc3 {[%emt 0:00:35]} Nge7 {[%emt 0:01:15]} 8. Bg5 {[%emt 0:07:06]} f6 {[%emt 0:02:32]} 9. Be3 {[%emt 0:00:53]} d6 {[%emt 0:01:04]} 10. Qd2 {[%emt 0:01:46]} Nf5 {[%emt 0:03:06]} 11. Nd5 {[%emt 0:01:52]} Nxe3 {[%emt 0:06:56]} 12. Nxe3 {[%emt 0:03:40]} Bh6 {[%emt 0:02:48]} 13. Qc3 {[%emt 0:02:25]} Be6 {[%emt 0:10:22]} 14. Nd5 {[%emt 0:01:01]} O-O {[%emt 0:03:30]} 15. Nd2 {[%emt 0:01:53]} Ne7 {[%emt 0:04:24]} 16. e3 {[%emt 0:03:36]} f5 {[%emt 0:05:42]} 17. f4 {[%emt 0:01:59]} Bg7 {[%emt 0:03:25]} 18. Qc2 {[%emt 0:00:52]} Nxd5 {[%emt 0:03:59]} 19. cxd5 {[%emt 0:02:40]} Bf7 {[%emt 0:06:06]} 20. O-O {[%emt 0:07:17]} exf4 {[%emt 0:02:30]} 21. exf4 {[%emt 0:02:03]} b5 {[%emt 0:02:35]} 22. a4 {[%emt 0:07:09]} a6 {[%emt 0:01:53]} 23. axb5 {[%emt 0:01:28]} axb5 {[%emt 0:00:09]} 24. Qb3 {[%emt 0:00:33]} Qd7 {[%emt 0:06:32]} 25. Nf3 {[%emt 0:01:07]} Ra4 {[%emt 0:04:36]} 26. Ng5 {[%emt 0:36:01]} Rb4 {[%emt 0:01:27]} 27. Qa2 {[%emt 0:07:42]} Rxb2 {[%emt 0:14:00]} 28. Qa7 {[%emt 0:00:06]} Qxa7 {[%emt 0:00:47]} 29. Rxa7 {[%emt 0:00:06]} c4 {[%emt 0:01:39]} 30. dxc4 {[%emt 0:01:27]} Bd4+ {[%emt 0:01:05]} 0-1

[Event "SVK Extraliga 2019-20"]
[Site "Slovakia"]
[Date "2020.09.04"]
[Round "9"]
[White "Mydlarik, Martin"]
[Black "Kovacik, Emil"]
[Result "0-1"]
[ECO "C08"]
[WhiteElo "2073"]
[BlackElo "2088"]
[Annotator "ChessBase"]
[PlyCount "78"]
[EventDate "2019.10.19"]
[EventType "team-tourn"]
[EventCountry "SVK"]
[SourceTitle "playchess.com"]
[Source "ChessBase"]
[SourceQuality "1"]
[WhiteTeam "Modra"]
[BlackTeam "Dubnica"]
[TimeControl "40/5400+30:1800+30"]

1. e4 {[%emt 0:00:00]} e6 {[%emt 0:00:17]} 2. d4 {[%emt 0:00:57]} d5 {[%emt 0:01:39]} 3. Nd2 {[%emt 0:00:38]} c5 {[%emt 0:02:21]} 4. exd5 {[%emt 0:00:07]} exd5 {[%emt 0:00:10]} 5. Ngf3 {[%emt 0:01:19]} Qe7+ {[%emt 0:01:55]} 6. Be2 {[%emt 0:01:59]} Nf6 {[%emt 0:02:36]} 7. dxc5 {[%emt 0:01:20]} Qxc5 {[%emt 0:03:07]} 8. O-O {[%emt 0:00:22]} Be7 {[%emt 0:01:39]} 9. Nb3 {[%emt 0:00:13]} Qd6 {[%emt 0:00:53]} 10. Bg5 {[%emt 0:04:00]} O-O {[%emt 0:02:22]} 11. Nbd4 {[%emt 0:03:25]} Nc6 {[%emt 0:03:07]} 12. c3 {[%emt 0:06:09]} Bg4 {[%emt 0:03:03]} 13. g3 {[%emt 0:13:20]} Rfe8 {[%emt 0:03:03]} 14. Bf4 {[%emt 0:14:14]} Qd8 {[%emt 0:00:27]} 15. Ne5 {[%emt 0:03:45]} Nxe5 {[%emt 0:05:18]} 16. Bxe5 {[%emt 0:00:16]} Bxe2 {[%emt 0:07:17]} 17. Nxe2 {[%emt 0:00:18]} Qb6 {[%emt 0:01:56]} 18. Bd4 {[%emt 0:11:52]} Qxb2 {[%emt 0:01:20]} 19. c4 {[%emt 0:03:30]} Qa3 {[%emt 0:03:02]} 20. cxd5 {[%emt 0:00:22]} Rad8 {[%emt 0:02:01]} 21. Nc3 {[%emt 0:11:00]} Nxd5 {[%emt 0:05:03]} 22. Nxd5 {[%emt 0:05:27]} Rxd5 {[%emt 0:00:12]} 23. Qg4 {[%emt 0:00:06]} Bf8 {[%emt 0:02:15]} 24. Be3 {[%emt 0:09:33]} Red8 {[%emt 0:05:18]} 25. Rfc1 {[%emt 0:02:39]} Qa5 {[%emt 0:11:51]} 26. a4 {[%emt 0:00:45]} Bc5 {[%emt 0:09:17]} 27. Bh6 {[%emt 0:00:54]} g6 {[%emt 0:07:15]} 28. Ra2 {[%emt 0:03:28]} Qb6 {[%emt 0:01:49]} 29. a5 {[%emt 0:01:09]} Qb3 {[%emt 0:00:59]} 30. Rac2 {[%emt 0:00:17]} Ba3 {[%emt 0:04:12]} 31. Rc3 {[%emt 0:01:32]} Rd1+ {[%emt 0:05:30]} 32. Kg2 {[%emt 0:00:31]} Qd5+ {[%emt 0:00:26]} 33. Kh3 {[%emt 0:00:07]} Bxc1 {[%emt 0:00:34]} 34. Bxc1 {[%emt 0:00:14]} h5 {[%emt 0:01:17]} 35. Qf4 {[%emt 0:01:00]} Qe6+ {[%emt 0:00:47]} 36. Kg2 {[%emt 0:00:28]} Qe1 {[%emt 0:00:02]} 37. Rc7 {[%emt 0:00:14]} Qh1+ {[%emt 0:00:23]} 38. Kh3 {[%emt 0:00:11]} Qf1+ {[%emt 0:00:06]} 39. Kh4 {[%emt 0:00:17]} R1d4 {[%emt 0:00:03]} 0-1

[Event "SVK Extraliga 2019-20"]
[Site "Slovakia"]
[Date "2020.09.04"]
[Round "9"]
[White "Popovic, Martin"]
[Black "Kravec, Patrik"]
[Result "1/2-1/2"]
[ECO "B60"]
[WhiteElo "2017"]
[BlackElo "2126"]
[Annotator "ChessBase"]
[PlyCount "48"]
[EventDate "2019.10.19"]
[EventType "team-tourn"]
[EventCountry "SVK"]
[SourceTitle "playchess.com"]
[Source "ChessBase"]
[SourceQuality "1"]
[WhiteTeam "Kosice"]
[BlackTeam "Snina"]
[TimeControl "40/5400+30:1800+30"]

1. e4 {[%emt 0:00:00]} c5 {[%emt 0:00:00]} 2. Nf3 {[%emt 0:00:00]} Nc6 {[%emt 0:00:39]} 3. d4 {[%emt 0:00:00]} cxd4 {[%emt 0:00:05]} 4. Nxd4 {[%emt 0:00:00]} Nf6 {[%emt 0:00:29]} 5. Nc3 {[%emt 0:00:00]} d6 {[%emt 0:00:03]} 6. Bg5 {[%emt 0:01:49]} Qa5 {[%emt 0:00:29]} 7. Nxc6 {[%emt 0:07:58]} bxc6 {[%emt 0:08:04]} 8. Qd2 {[%emt 0:02:07]} Rb8 {[%emt 0:04:24]} 9. Rb1 {[%emt 0:13:36]} h6 {[%emt 0:07:52]} 10. Be3 {[%emt 0:13:35]} Ng4 {[%emt 0:04:22]} 11. Be2 {[%emt 0:03:09]} Nxe3 {[%emt 0:02:49]} 12. Qxe3 {[%emt 0:00:20]} e6 {[%emt 0:11:19]} 13. O-O {[%emt 0:03:18]} Be7 {[%emt 0:00:32]} 14. a3 {[%emt 0:05:56]} O-O {[%emt 0:01:11]} 15. b4 {[%emt 0:00:45]} Qb6 {[%emt 0:06:09]} 16. Qd3 {[%emt 0:05:45]} Qc7 {[%emt 0:10:52]} 17. f4 {[%emt 0:14:08]} c5 {[%emt 0:13:20]} 18. Kh1 {[%emt 0:04:53]} cxb4 {[%emt 0:02:23]} 19. axb4 {[%emt 0:00:13]} Bd7 {[%emt 0:01:22]} 20. Nd1 {[%emt 0:05:42]} a5 {[%emt 0:05:48]} 21. b5 {[%emt 0:00:22]} Qc5 {[%emt 0:09:07]} 22. c4 {[%emt 0:00:26]} a4 {[%emt 0:01:12]} 23. Qe3 {[%emt 0:04:39]} Rfc8 {[%emt 0:03:45]} 24. Qxc5 {[%emt 0:00:33]} Rxc5 {[%emt 0:01:04]} 1/2-1/2

[Event "SVK Extraliga 2019-20"]
[Site "Slovakia"]
[Date "2020.09.04"]
[Round "9"]
[White "Nadzamova, Viktoria"]
[Black "Harvan, Richard"]
[Result "1-0"]
[ECO "C11"]
[WhiteElo "1946"]
[BlackElo "2115"]
[Annotator "ChessBase"]
[PlyCount "51"]
[EventDate "2019.10.19"]
[EventType "team-tourn"]
[EventCountry "SVK"]
[SourceTitle "playchess.com"]
[Source "ChessBase"]
[SourceQuality "1"]
[WhiteTeam "Kosice"]
[BlackTeam "Snina"]
[TimeControl "40/5400+30:1800+30"]

1. e4 {[%emt 0:00:00]} e6 {[%emt 0:01:28]} 2. d4 {[%emt 0:00:00]} d5 {[%emt 0:00:06]} 3. Nc3 {[%emt 0:00:01]} Nf6 {[%emt 0:00:38]} 4. e5 {[%emt 0:00:44]} Nfd7 {[%emt 0:00:03]} 5. f4 {[%emt 0:00:20]} c5 {[%emt 0:00:37]} 6. Nf3 {[%emt 0:00:09]} Nc6 {[%emt 0:00:05]} 7. Be3 {[%emt 0:00:23]} cxd4 {[%emt 0:06:59]} 8. Nxd4 {[%emt 0:00:18]} Bc5 {[%emt 0:01:17]} 9. Qd2 {[%emt 0:24:52]} a6 {[%emt 0:01:43]} 10. Be2 {[%emt 0:04:17]} Qc7 {[%emt 0:03:58]} 11. O-O {[%emt 0:05:34]} b5 {[%emt 0:09:08]} 12. Nxc6 {[%emt 0:03:15]} Qxc6 {[%emt 0:02:19]} 13. Kh1 {[%emt 0:04:10]} Bb7 {[%emt 0:04:36]} 14. Bf3 {[%emt 0:00:56]} O-O {[%emt 0:12:51]} 15. Rae1 {[%emt 0:08:23]} Rac8 {[%emt 0:06:03]} 16. f5 {[%emt 0:08:39]} b4 {[%emt 0:08:10]} 17. Ne2 {[%emt 0:12:32]} exf5 {[%emt 0:03:35]} 18. Bxc5 {[%emt 0:00:43]} Qxc5 {[%emt 0:04:24]} 19. Nd4 {[%emt 0:01:37]} Rfe8 {[%emt 0:22:58]} 20. Nxf5 {[%emt 0:03:41]} Nxe5 {[%emt 0:01:39]} 21. Rxe5 {[%emt 0:02:29]} Rxe5 {[%emt 0:00:19]} 22. Qg5 {[%emt 0:00:15]} Rxf5 {[%emt 0:00:36]} 23. Qxf5 {[%emt 0:00:07]} Qxc2 {[%emt 0:00:57]} 24. Be4 {[%emt 0:00:20]} Qc1 {[%emt 0:04:07]} 25. Qxf7+ {[%emt 0:03:10]} Kh8 {[%emt 0:00:08]} 26. Bc2 {[%emt 0:00:11]} 1-0

[Event "SVK Extraliga 2019-20"]
[Site "Slovakia"]
[Date "2020.09.05"]
[Round "10.1"]
[White "Cvek, Robert"]
[Black "Saric, Ivan"]
[Result "1/2-1/2"]
[ECO "E94"]
[WhiteElo "2487"]
[BlackElo "2646"]
[Annotator "RC"]
[PlyCount "41"]
[EventDate "2019.10.19"]
[EventType "team-tourn"]
[EventCountry "SVK"]
[SourceTitle "playchess.com"]
[Source "ChessBase"]
[SourceQuality "1"]
[WhiteTeam "Osuske"]
[BlackTeam "Modra"]
[TimeControl "40/5400+30:1800+30"]

1. Nf3 {[%emt 0:00:00]} Nf6 {[%emt 0:00:00]} 2. c4 {[%emt 0:00:00]} g6 {[%emt 0:00:00]} 3. Nc3 {[%emt 0:00:00]} Bg7 {[%emt 0:00:00]} 4. e4 {[%emt 0:00:15]} d6 {[%emt 0:00:00]} 5. d4 {[%emt 0:00:09]} O-O {[%emt 0:00:00]} 6. Be2 {[%emt 0:00:26]} e5 {[%emt 0:00:02]} 7. O-O {[%emt 0:00:28]} Na6 {[%emt 0:02:45]} 8. Be3 {[%emt 0:04:06]} Qe7 {[%emt 0:00:39]} 9. dxe5 {[%emt 0:04:15]} dxe5 {[%emt 0:00:03]} 10. Nd5 {[%emt 0:02:23]} Qd8 {[%emt 0:00:05]} 11. Nxf6+ {[%emt 0:10:34]} Qxf6 {[%emt 0:03:03]} 12. c5 {[%emt 0:01:25]} Qc6 {[%emt 0:03:46]} 13. Qc2 {[%emt 0:04:45]} Nb4 {[%emt 0:08:13]} 14. Qc4 {[%emt 0:05:32]} a5 {[%emt 0:01:05]} 15. a3 {[%emt 0:00:39]} Na6 {[%emt 0:01:17]} 16. Rac1 {[%emt 0:19:35]} Be6 {[%emt 0:01:54]} 17. Qc3 {[%emt 0:03:47]} a4 {[%emt 0:01:04]} 18. Bc4 {[%emt 0:02:24]} Bxc4 {[%emt 0:02:21]} 19. Qxc4 {[%emt 0:00:02]} Rad8 {[%emt 0:01:10]} 20. Nd2 {[%emt 0:02:22]} Kh8 {[%emt 0:01:20]} 21. b4 {[%emt 0:00:32]} 1/2-1/2

[Event "SVK Extraliga 2019-20"]
[Site "Slovakia"]
[Date "2020.09.05"]
[Round "10.3"]
[White "Bernasek, Jan"]
[Black "Bokros, Albert"]
[Result "1-0"]
[ECO "A06"]
[WhiteElo "2494"]
[BlackElo "2483"]
[Annotator "RC"]
[PlyCount "105"]
[EventDate "2019.10.19"]
[EventType "team-tourn"]
[EventCountry "SVK"]
[SourceTitle "playchess.com"]
[Source "ChessBase"]
[SourceQuality "1"]
[BlackTeam "Streda"]
[TimeControl "40/5400+30:1800+30"]

1. Nf3 {[%emt 0:01:18]} d5 {[%emt 0:00:00]} 2. e3 {[%emt 0:00:05]} Nf6 {[%emt 0:00:00]} 3. c4 {[%emt 0:00:07]} e6 {[%emt 0:00:07]} 4. b3 {[%emt 0:01:02]} Be7 {[%emt 0:00:19]} 5. Bb2 {[%emt 0:00:29]} O-O {[%emt 0:00:18]} 6. Be2 {[%emt 0:02:40]} b6 {[%emt 0:00:56]} 7. O-O {[%emt 0:00:34]} Bb7 {[%emt 0:07:19]} 8. d4 {[%emt 0:00:26]} Nbd7 {[%emt 0:01:38]} 9. Nbd2 {[%emt 0:02:01]} c5 {[%emt 0:06:41]} 10. Rc1 {[%emt 0:03:03]} cxd4 {[%emt 0:02:09]} 11. Nxd4 {[%emt 0:00:47]} Rc8 {[%emt 0:01:15]} 12. N2f3 {[%emt 0:02:04]} a6 {[%emt 0:03:42]} 13. a4 {[%emt 0:09:04]} Bb4 {[%emt 0:04:02]} 14. cxd5 {[%emt 0:05:52]} Nxd5 {[%emt 0:01:21]} 15. Bc4 {[%emt 0:01:25]} Nc5 {[%emt 0:04:14]} 16. Nc2 {[%emt 0:06:13]} Bc3 {[%emt 0:08:45]} 17. Ba3 {[%emt 0:00:14]} a5 {[%emt 0:02:27]} 18. Qe2 {[%emt 0:03:25]} Qf6 {[%emt 0:13:50]} 19. Ncd4 {[%emt 0:04:32]} Bb4 {[%emt 0:03:56]} 20. Bb2 {[%emt 0:01:18]} Qg6 {[%emt 0:01:51]} 21. Rfd1 {[%emt 0:06:47]} Rfd8 {[%emt 0:01:45]} 22. Ne5 {[%emt 0:12:14]} Nf4 {[%emt 0:07:58]} 23. Nxg6 {[%emt 0:11:07]} Nxe2+ {[%emt 0:00:39]} 24. Nxe2 {[%emt 0:01:20]} hxg6 {[%emt 0:00:58]} 25. Nd4 {[%emt 0:01:23]} Bd5 {[%emt 0:06:03]} 26. Bxd5 {[%emt 0:04:38]} Rxd5 {[%emt 0:00:52]} 27. f4 {[%emt 0:00:12]} Rcd8 {[%emt 0:06:02]} 28. Rc2 {[%emt 0:12:51]} Nxb3 {[%emt 0:04:41]} 29. Rb1 {[%emt 0:00:07]} Nd2 {[%emt 0:02:29]} 30. Ra1 {[%emt 0:03:31]} Ne4 {[%emt 0:00:28]} 31. Kf1 {[%emt 0:00:06]} g5 {[%emt 0:01:09]} 32. Nc6 {[%emt 0:03:30]} Rd1+ {[%emt 0:03:32]} 33. Rxd1 {[%emt 0:00:05]} Rxd1+ {[%emt 0:00:07]} 34. Ke2 {[%emt 0:00:00]} Re1+ {[%emt 0:01:02]} 35. Kf3 {[%emt 0:00:10]} f5 {[%emt 0:01:04]} 36. fxg5 {[%emt 0:00:56]} Rf1+ {[%emt 0:03:37]} 37. Ke2 {[%emt 0:00:05]} Re1+ {[%emt 0:00:35]} 38. Kf3 {[%emt 0:00:01]} Bd6 {[%emt 0:00:22]} 39. h4 {[%emt 0:00:44]} Bc5 {[%emt 0:00:39]} 40. Bd4 {[%emt 0:00:50]} Rh1 {[%emt 0:00:35]} 41. g3 {[%emt 0:10:28]} Rg1 {[%emt 0:02:53]} 42. Bxc5 {[%emt 0:07:09]} Rxg3+ {[%emt 0:02:21]} 43. Kf4 {[%emt 0:00:05]} Rg4+ {[%emt 0:00:17]} 44. Ke5 {[%emt 0:00:04]} Nxc5 {[%emt 0:00:30]} 45. Kd6 {[%emt 0:02:30]} Kh7 {[%emt 0:07:15]} 46. Ke7 {[%emt 0:03:37]} Rxa4 {[%emt 0:07:05]} 47. h5 {[%emt 0:02:31]} f4 {[%emt 0:04:04]} 48. g6+ {[%emt 0:02:49]} Kh6 {[%emt 0:00:24]} 49. Rh2 {[%emt 0:00:36]} Nd3 {[%emt 0:08:57]} 50. Nd8 {[%emt 0:01:01]} Kg5 {[%emt 0:00:07]} 51. h6 {[%emt 0:00:25]} Ne5 {[%emt 0:01:19]} 52. hxg7 {[%emt 0:00:15]} Nxg6+ {[%emt 0:00:05]} 53. Ke8 {[%emt 0:00:16]} 1-0

[Event "SVK Extraliga 2019-20"]
[Site "Slovakia"]
[Date "2020.09.05"]
[Round "10.4"]
[White "Vymazal, Bronislav"]
[Black "Matejovic, Juraj"]
[Result "1/2-1/2"]
[ECO "B40"]
[WhiteElo "2351"]
[BlackElo "2239"]
[Annotator "ChessBase"]
[PlyCount "68"]
[EventDate "2019.10.19"]
[EventType "team-tourn"]
[EventCountry "SVK"]
[SourceTitle "playchess.com"]
[Source "ChessBase"]
[SourceQuality "1"]
[WhiteTeam "Podhajska"]
[BlackTeam "Dunajov"]
[TimeControl "40/5400+30:1800+30"]

1. e4 {[%emt 0:00:00]} c5 {[%emt 0:00:04]} 2. Nf3 {[%emt 0:00:00]} e6 {[%emt 0:00:37]} 3. d4 {[%emt 0:04:12]} cxd4 {[%emt 0:00:13]} 4. Nxd4 {[%emt 0:00:03]} Nf6 {[%emt 0:00:44]} 5. Nc3 {[%emt 0:00:25]} Nc6 {[%emt 0:00:25]} 6. Nxc6 {[%emt 0:08:46]} bxc6 {[%emt 0:00:24]} 7. Bd3 {[%emt 0:00:05]} e5 {[%emt 0:13:49]} 8. O-O {[%emt 0:01:49]} Be7 {[%emt 0:16:47]} 9. Qe2 {[%emt 0:06:21]} O-O {[%emt 0:02:45]} 10. Rd1 {[%emt 0:06:39]} d6 {[%emt 0:08:32]} 11. Bc4 {[%emt 0:08:36]} Bg4 {[%emt 0:11:48]} 12. f3 {[%emt 0:00:07]} Be6 {[%emt 0:04:12]} 13. Bb3 {[%emt 0:03:39]} Qc7 {[%emt 0:03:14]} 14. Bg5 {[%emt 0:01:41]} Rad8 {[%emt 0:10:03]} 15. Kh1 {[%emt 0:00:17]} Nh5 {[%emt 0:06:48]} 16. Be3 {[%emt 0:05:36]} Rd7 {[%emt 0:01:19]} 17. Rd2 {[%emt 0:03:13]} Rfd8 {[%emt 0:00:43]} 18. Rad1 {[%emt 0:00:54]} h6 {[%emt 0:00:30]} 19. g3 {[%emt 0:33:08]} Nf6 {[%emt 0:00:39]} 20. Bf2 {[%emt 0:00:11]} d5 {[%emt 0:01:49]} 21. exd5 {[%emt 0:00:09]} cxd5 {[%emt 0:00:49]} 22. Ba4 {[%emt 0:00:21]} d4 {[%emt 0:00:21]} 23. Bxd7 {[%emt 0:08:00]} dxc3 {[%emt 0:01:54]} 24. Bxe6 {[%emt 0:00:05]} Rxd2 {[%emt 0:00:55]} 25. Rxd2 {[%emt 0:00:04]} cxd2 {[%emt 0:00:56]} 26. Bb3 {[%emt 0:00:19]} Qd7 {[%emt 0:02:28]} 27. c3 {[%emt 0:00:40]} Qf5 {[%emt 0:03:37]} 28. Be3 {[%emt 0:05:37]} Qb1+ {[%emt 0:02:50]} 29. Kg2 {[%emt 0:00:07]} Qxb2 {[%emt 0:00:52]} 30. Qxd2 {[%emt 0:00:06]} Qxd2+ {[%emt 0:00:22]} 31. Bxd2 {[%emt 0:00:03]} Bc5 {[%emt 0:00:08]} 32. Kf1 {[%emt 0:00:29]} Kf8 {[%emt 0:02:04]} 33. Ke2 {[%emt 0:00:36]} Ke7 {[%emt 0:01:05]} 34. f4 {[%emt 0:01:46]} Ne4 {[%emt 0:01:21]} 1/2-1/2

[Event "SVK Extraliga 2019-20"]
[Site "Slovakia"]
[Date "2020.09.05"]
[Round "10.4"]
[White "Kralovic, Andrej"]
[Black "Krak, Tomas"]
[Result "1-0"]
[ECO "B31"]
[WhiteElo "2211"]
[BlackElo "2326"]
[Annotator "ChessBase"]
[PlyCount "53"]
[EventDate "2019.10.19"]
[EventType "team-tourn"]
[EventCountry "SVK"]
[SourceTitle "playchess.com"]
[Source "ChessBase"]
[SourceQuality "1"]
[BlackTeam "Snina"]
[TimeControl "40/5400+30:1800+30"]

1. e4 {[%emt 0:00:00]} c5 {[%emt 0:00:00]} 2. Nf3 {[%emt 0:00:05]} Nc6 {[%emt 0:02:30]} 3. Bb5 {[%emt 0:00:39]} g6 {[%emt 0:02:39]} 4. Bxc6 {[%emt 0:01:12]} dxc6 {[%emt 0:03:13]} 5. d3 {[%emt 0:00:33]} Bg7 {[%emt 0:00:07]} 6. O-O {[%emt 0:00:31]} Nf6 {[%emt 0:00:12]} 7. h3 {[%emt 0:03:05]} Nd7 {[%emt 0:03:13]} 8. Nc3 {[%emt 0:00:33]} Nf8 {[%emt 0:00:18]} 9. Be3 {[%emt 0:10:15]} Ne6 {[%emt 0:01:21]} 10. Qd2 {[%emt 0:01:25]} Nd4 {[%emt 0:00:25]} 11. Nh2 {[%emt 0:01:32]} Qa5 {[%emt 0:00:57]} 12. a3 {[%emt 0:19:03]} O-O {[%emt 0:06:25]} 13. Rfb1 {[%emt 0:13:00]} Qc7 {[%emt 0:23:06]} 14. Ne2 {[%emt 0:02:59]} Rd8 {[%emt 0:04:35]} 15. Nxd4 {[%emt 0:02:31]} cxd4 {[%emt 0:00:06]} 16. Bh6 {[%emt 0:01:04]} Bh8 {[%emt 0:01:58]} 17. f4 {[%emt 0:03:35]} c5 {[%emt 0:02:19]} 18. b3 {[%emt 0:03:26]} a5 {[%emt 0:07:04]} 19. a4 {[%emt 0:00:16]} b6 {[%emt 0:03:36]} 20. Rf1 {[%emt 0:01:16]} f6 {[%emt 0:09:53]} 21. Rae1 {[%emt 0:05:11]} e6 {[%emt 0:01:23]} 22. Qf2 {[%emt 0:08:50]} Re8 {[%emt 0:07:19]} 23. Qh4 {[%emt 0:02:15]} Qf7 {[%emt 0:03:59]} 24. Ng4 {[%emt 0:07:21]} Bb7 {[%emt 0:02:01]} 25. Bg5 {[%emt 0:03:22]} fxg5 {[%emt 0:05:24]} 26. Nh6+ {[%emt 0:04:25]} Kg7 {[%emt 0:01:10]} 27. fxg5 1-0